Cogmind - Beta 14 @@@ ROGUE MODE // 2025.03.31 @ 14:31:01 Player: golanco Result: Destroyed by Y-45 Defender with Heavy Assault Rifle Performance ------------- Evolutions (2) 1000 Regions Visited (7) 1400 Robots Destroyed (131) 655 Value Destroyed (3061) 3061 Prototype IDs (5) 100 Alien Tech Used (0) 0 Bonus (285) 285 TOTAL SCORE: 6501 Bonus ------- High Alert Combat Kills 285 Cogmind --------- Core Integrity 0/550 Matter 83/300 Energy 140/140 System Corruption 0% Temperature Cool (0) Movement Flying (454) Ox6 Location -8/Materials Parts ------- > --- POWER (1) -------- Light Deuterium Engine > --- PROPULSION (3) --- Improved Flight Unit Improved Flight Unit Improved Flight Unit > --- UTILITY (5) ------ Huge Storage Unit Improved Signal Interpreter Transport Network Coupler Hacking Suite Hacking Suite > --- WEAPON (2) ------- Rocket Launcher Heavy Hammer > --- INVENTORY (25) --- Light Nuclear Core VTOL Module Improved Flight Unit Cesium-ion Thruster Improved VTOL Module Improved VTOL Module Faulty Improved VTOL Module Faulty Improved VTOL Module Sensor Array ECM Suite Utility Shielding Utility Shielding Insulated Plating Hacking Suite Hacking Suite Rocket Launcher Axe Peak State ------------ > --- POWER ------------ Light Deuterium Engine > --- PROPULSION ------- Improved Flight Unit Improved Flight Unit Improved Flight Unit > --- UTILITY ---------- Huge Storage Unit Improved Signal Interpreter Transport Network Coupler Hacking Suite Hacking Suite > --- WEAPON ----------- Rocket Launcher Heavy Hammer > --- INVENTORY -------- Light Nuclear Core VTOL Module Improved Flight Unit Cesium-ion Thruster Improved VTOL Module Improved VTOL Module Improved VTOL Module Improved VTOL Module Sensor Array ECM Suite Insulated Plating Hacking Suite Hacking Suite Rocket Launcher Axe [Rating: 31] Favorites ----------- Power Improved Ion Engine Engine Improved Ion Engine Propulsion Light Treads Treads Light Treads Flight Unit Improved Flight Unit Utility Sensor Array Device Sensor Array Storage Huge Storage Unit Processor Transport Network Coupler Hackware Hacking Suite Protection Light Armor Plating Weapon Beam Cannon Energy Gun Medium Laser Energy Cannon Beam Cannon Ballistic Gun Assault Rifle Ballistic Cannon Assault Cannon Launcher Rocket Launcher Special Weapon Plasma Cutter Impact Weapon Heavy Hammer Build | -11 -10 -10 -9 -9 -9 -8 -8 ------- Run | Yrd Mat Min Mat Min Exi Min Mat Slots Evolved 4 | . . . 2 . . . 2 Power . | . . . . . . . . Propulsion 1 | . . . 1 . . . . Utility 3 | . . . 1 . . . 2 Weapon . | . . . . . . . . Parts Attached 92 | 8 19 1 30 2 1 4 27 Power 13 | 2 3 . 4 . . . 4 Engine 13 | 2 3 . 4 . . . 4 Core . | . . . . . . . . Reactor . | . . . . . . . . Propulsion 33 | 2 7 . 13 2 . 2 7 Treads 29 | 2 7 . 13 1 . 2 4 Leg . | . . . . . . . . Wheel . | . . . . . . . . Hover . | . . . . . . . . Flight 4 | . . . . 1 . . 3 Utility 18 | 2 3 1 5 . 1 . 6 Device 7 | 1 2 . 3 . . . 1 Storage 4 | 1 1 1 1 . . . . Processor 2 | . . . . . . . 2 Hackware 2 | . . . . . . . 2 Protection 3 | . . . 1 . 1 . 1 Artifact . | . . . . . . . . Weapon 28 | 2 6 . 8 . . 2 10 Energy Gun 3 | 1 2 . . . . . . Energy Cannon 7 | . 3 . 1 . . 1 2 Ballistic Gun 1 | 1 . . . . . . . Ballistic Cannon 7 | . . . 4 . . 1 2 Launcher 8 | . 1 . 3 . . . 4 Special Weapon 1 | . . . . . . . 1 Impact Weapon 1 | . . . . . . . 1 Slashing Weapon . | . . . . . . . . Piercing Weapon . | . . . . . . . . Special Melee Weapon . | . . . . . . . . Unidentified Prototypes 1 | . . . . 1 . . . Parts Lost 22 | . 1 . 3 . . . 18 Power 2 | . . . 1 . . . 1 Propulsion 6 | . . . . . . . 6 Utility 5 | . . . 1 . . . 4 Weapon 9 | . 1 . 1 . . . 7 Highest Loss Streak 11 | . 1 . 1 . . . 11 To Critical Strikes . | . . . . . . . . Average Slot Usage (%) 94 | . 98 100 99 100 77 99 78 Engine 11 | . 13 14 10 11 11 11 8 Treads 29 | . 27 28 33 33 33 33 20 Device 15 | . 13 14 20 11 11 11 9 Storage 11 | . 14 14 11 11 11 11 9 Processor 1 | . . . . . . . 9 Protection 1 | . . . 1 11 11 11 . Energy Gun 3 | . 13 14 . . . . . Energy Cannon 10 | . 12 14 8 11 . 11 11 Ballistic Cannon 5 | . . . 9 11 . 10 . Launcher 2 | . . . 3 . . . 3 Peak Build Rating 31 | 7 8 8 19 20 16 19 31 Average Rating 15 | 5 7 8 16 19 15 18 19 On Entrance 11 | . 7 8 8 19 19 15 19 Naked Turns . | . . . . . . . . Heaviest Build 99 | 15 31 51 99 99 91 99 99 Greatest Support 69 | 40 40 40 69 69 69 69 69 Greatest Overweight (x) 9 | 1 9 1 1 1 1 1 6 Average Overweight (x) . | . . . . 1 1 1 1 Largest Inventory Capacity 25 | 8 15 20 25 25 25 25 25 Average Capacity 21 | 7 13 18 23 25 25 25 25 Most Carried 25 | 2 15 16 25 25 25 24 25 Average Carried 19 | 1 12 15 20 25 24 22 22 Final Capacity 25 | 8 15 20 25 25 25 25 25 Final Carried 25 | 2 15 16 25 25 25 22 17 Class Distribution -------------------- 73% | Mutant 21% | Scavenger-Mutant 3% | Scavenger-Skirmisher Dominant Class ---------------- Mutant | -10/Materials Mutant | -10/Mines Mutant | -9/Materials Mutant | -9/Mines Mutant | -9/Exiles Mutant | -8/Mines Mutant | -8/Materials Resources | -11 -10 -10 -9 -9 -9 -8 -8 ----------- Run | Yrd Mat Min Mat Min Exi Min Mat Matter Collected 2394 | 280 275 20 1118 . . 143 558 Remotely . | . . . . . . . . Salvage Created 3548 | 37 551 82 1439 . . 98 1341 Parts 237 | 3 53 . 95 . . 5 81 Haulers Intercepted 14 | . 2 . 6 . . . 6 Recyclers Shooed 4 | . 1 . 2 . . . 1 Parts Field Recycled . | . . . . . . . . Retrieved Matter . | . . . . . . . . Parts Self-Destructed . | . . . . . . . . Prevented . | . . . . . . . . Kills | -11 -10 -10 -9 -9 -9 -8 -8 ------- Run | Yrd Mat Min Mat Min Exi Min Mat Combat Hostiles Destroyed 75 | . 15 . 27 . . 3 30 Guns 4 | . 4 . . . . . . Cannons 39 | . 5 . 19 . . 3 12 AOE 30 | . 6 . 8 . . . 16 Classes Destroyed 13 | 1 7 1 3 . . . 1 Worker 8 | . 3 . 3 . . . 2 Builder 6 | . 1 . 2 . . . 3 Tunneler 8 | 2 3 . 1 . . . 2 Hauler 14 | . 2 . 6 . . . 6 Recycler 6 | . . 1 3 . . 1 1 Mechanic 1 | . 1 . . . . . . Operator 4 | . . . 2 . . . 2 Watcher 9 | . 3 . 5 . . . 1 Swarmer 20 | . 9 . 3 . . 3 5 Grunt 41 | . 6 . 15 . . . 20 Brawler 1 | . . . 1 . . . . Protector 1 | . . . . . . . 1 Sentry 12 | . . . 8 . . . 4 Best Kill Streak 17 | 1 9 1 7 . . 3 17 Combat Bots Only 7 | . 7 . 4 . . 3 5 Max Kills in Single Turn 4 | 1 2 1 2 . . 1 4 Gunslinging . | . . . . . . . . Exploded 2 | . 2 . 2 . . . 2 Melee . | . . . . . . . . Uniques/NPCs Destroyed . | . . . . . . . . Combat | -11 -10 -10 -9 -9 -9 -8 -8 -------- Run | Yrd Mat Min Mat Min Exi Min Mat Hostile Shots Fired 446 | . 69 . 111 . . 39 227 Missed 123 | . 29 . 34 . . 2 58 Damage Taken 4435 | . 421 . 1103 . . 306 2605 Core 729 | . 30 . 115 . . 27 557 Absorbed by Shields . | . . . . . . . . Regen/Repaired (Parts) 123 | . 123 . . . . . . Core Remaining (%) 84 | 100 . 88 . . . 64 . Volleys Fired 308 | 4 56 1 118 . . 14 115 Largest 2 | 2 2 2 2 . . 2 2 Hottest 128 | 70 110 110 104 . . 104 128 Shots Fired 528 | 8 103 2 197 . . 28 190 Gun 63 | 8 54 1 . . . . . Cannon 398 | . 40 1 173 . . 28 156 Launcher 65 | . 9 . 24 . . . 32 Special 2 | . . . . . . . 2 Kinetic 132 | 4 . . 101 . . 14 13 Thermal 331 | 4 94 2 72 . . 14 145 Explosive 65 | . 9 . 24 . . . 32 Electromagnetic . | . . . . . . . . Robot Hit Streak 15 | 4 7 5 12 . . 4 15 Robot Miss Streak 10 | 1 10 . 3 . . 4 6 Penetration Max . | . . . . . . . . Secondary Targets . | . . . . . . . . Shots Hit Robots 300 | 6 50 2 118 . . 13 111 Core Hits 195 | 2 36 1 63 . . 4 89 Critical Kills 1 | . . . . . . . 1 Critical Parts Destroyed . | . . . . . . . . Critical Strikes 6 | . 4 . . . . . 2 Burn 4 | . 4 . . . . . . Meltdown 1 | . . . . . . . 1 Blast 1 | . . . . . . . 1 Melee Attacks 4 | . . . . . . . 4 Impact 4 | . . . . . . . 4 Slashing . | . . . . . . . . Piercing . | . . . . . . . . Sneak Attacks . | . . . . . . . . Combat Hostiles . | . . . . . . . . Follow-up Attacks . | . . . . . . . . Damage Inflicted 9598 | 75 1489 30 3577 . . 281 4146 Guns 440 | 75 352 13 . . . . . Cannons 4826 | . 332 17 2400 . . 281 1796 Explosions 4269 | . 803 . 1177 . . . 2289 Melee 39 | . . . . . . . 39 Ramming 2 | . 2 . . . . . . Kinetic 1885 | 25 . . 1595 . . 192 73 Thermal 3403 | 50 684 30 805 . . 89 1745 Explosive 4269 | . 803 . 1177 . . . 2289 Electromagnetic . | . . . . . . . . Impact 39 | . . . . . . . 39 Slashing . | . . . . . . . . Piercing . | . . . . . . . . Highest Corruption 1 | . . . 1 1 1 1 . Average Corruption 1 | . . . 1 1 1 1 . Corruption Purged . | . . . . . . . . Corruption Blocked . | . . . . . . . . Effects 28 | . . . 23 . 2 3 . Message Errors 4 | . . . 3 . 1 . . Matter Fused 5 | . . . 4 . . 1 . Heat Flow Errors 2 | . . . 2 . . . . Energy Discharges 5 | . . . 3 . 1 1 . Data Loss (minor) 5 | . . . 4 . . 1 . Data Loss (major) 1 | . . . 1 . . . . Misfires 3 | . . . 3 . . . . Alerts 2 | . . . 2 . . . . Weapon Failures 1 | . . . 1 . . . . Overload Shots . | . . . . . . . . Overflow Damage 262 | . 103 . 81 . . 3 75 Projectiles 67 | . . . 23 . . 3 41 Explosions 195 | . 103 . 58 . . . 34 Melee . | . . . . . . . . Knockbacks 11 | . . . 7 . . 1 3 Impact . | . . . . . . . . Kinetic 10 | . . . 7 . . 1 2 Secondary 1 | . . . . . . . 1 Self-Inflicted Damage 393 | . 44 . 124 . . . 225 Shots 14 | . 2 . 5 . . . 7 Rammed 3 | . 1 . 1 . . . 1 Targets Rammed 3 | . 1 . 1 . . . 1 Kicked . | . . . . . . . . Crushed . | . . . . . . . . Highest Temperature 673 | 27 270 48 550 . . 456 673 Average Temperature 145 | 12 85 27 248 . . 213 157 Received Heat Transfer 1764 | . 54 . 441 . . . 1269 Effects 36 | . 2 . 11 . . 4 19 Shutdowns 5 | . . . 1 . . 1 3 Energy Bleed 8 | . . . 1 . . 1 6 Interference 12 | . 2 . 4 . . . 6 Matter Decay 4 | . . . 1 . . 1 2 Short Circuit 2 | . . . 1 . . 1 . Damage (minor) 2 | . . . 2 . . . . Damage (major) 3 | . . . 1 . . . 2 Siege Activations . | . . . . . . . . Robots Corrupted 1 | . . . . . . . 1 Combat Hostiles 1 | . . . . . . . 1 Parts Fried 2 | . . . . . . . 2 Impact Corruptions 1 | . . . . . . . 1 Robots Melted 1 | . . . . . . . 1 Combat Hostiles 1 | . . . . . . . 1 Parts Melted 13 | . 6 1 . . . . 6 Heat Transferred 7605 | 148 2035 74 1702 . . 185 3461 Parts Sabotaged . | . . . . . . . . Parts Stolen . | . . . . . . . . Parts Stripped . | . . . . . . . . Power Chain Reactions . | . . . . . . . . Alert | -11 -10 -10 -9 -9 -9 -8 -8 ------- Run | Yrd Mat Min Mat Min Exi Min Mat Peak Influence 660 | 10 310 35 658 243 . 77 660 Initial 243 | . 6 30 13 243 . . 29 Average 360 | 4 188 31 435 243 . 68 493 Maximum Alert Level 2 | . 1 . 2 1 . . 2 Low Security (%) 25 | 100 50 100 11 . . 100 3 Level 1 25 | . 49 . 23 100 . . 8 Level 2 49 | . . . 64 . . . 88 Level 3 . | . . . . . . . . Level 4 . | . . . . . . . . Level 5 . | . . . . . . . . High Security . | . . . . . . . . Max Security . | . . . . . . . . Squads Dispatched 12 | . 4 . 3 . . . 5 Investigation 6 | . 4 . 1 . . . 1 Extermination . | . . . . . . . . Reinforcement 4 | . . . 2 . . . 2 Assault 2 | . . . . . . . 2 Garrison . | . . . . . . . . Intercept . | . . . . . . . . Searches Triggered . | . . . . . . . . Construction Impeded 1 | . . . . . . . 1 Haulers Reinforced . | . . . . . . . . Active Scanning Responses . | . . . . . . . . Cargo Convoy Interrupts . | . . . . . . . . Stealth | -11 -10 -10 -9 -9 -9 -8 -8 --------- Run | Yrd Mat Min Mat Min Exi Min Mat Distress Signals 8 | . 1 . 6 . . . 1 Communications Jammed . | . . . . . . . . Distress Signals . | . . . . . . . . Times Spotted 110 | . 26 . 40 . . 3 41 Peak Tracking Total 6 | . 5 . 4 . . 3 6 Tactical Retreats 5 | . 1 . 2 . . . 2 Traps | -11 -10 -10 -9 -9 -9 -8 -8 ------- Run | Yrd Mat Min Mat Min Exi Min Mat Traps Triggered 9 | . 8 . 1 . . . . Indirectly . | . . . . . . . . Trap Hack Attempts . | . . . . . . . . Triggered . | . . . . . . . . Disarmed 6 | . 6 . . . . . . Reprogrammed . | . . . . . . . . Reused . | . . . . . . . . Traps Extracted . | . . . . . . . . Installed . | . . . . . . . . Triggered . | . . . . . . . . Machines | -11 -10 -10 -9 -9 -9 -8 -8 ---------- Run | Yrd Mat Min Mat Min Exi Min Mat Machines Disabled 16 | . 4 . 8 . . . 4 Max in Single Turn 4 | . 1 . 2 . . . 4 Machines Repaired . | . . . . . . . . Machines Dismantled . | . . . . . . . . Machines Sabotaged . | . . . . . . . . Overloaded Fab Kills . | . . . . . . . . Hacking | -11 -10 -10 -9 -9 -9 -8 -8 --------- Run | Yrd Mat Min Mat Min Exi Min Mat Machines Accessed 22 | . 11 . 8 . . . 3 Terminals 17 | . 8 . 6 . . . 3 Fabricators . | . . . . . . . . Repair Stations 2 | . 1 . 1 . . . . Recycling Units 3 | . 2 . 1 . . . . Scanalyzers . | . . . . . . . . Garrison Access . | . . . . . . . . Total Hacks 56 | . 33 . 13 . . . 10 Successful 22 | . 15 . 3 . . . 4 Failed 34 | . 18 . 10 . . . 6 Catastrophic 10 | . 4 . 3 . . . 3 Database Lockouts . | . . . . . . . . Manual 21 | . 8 . 4 . . . 9 Terminals 44 | . 25 . 9 . . . 10 Fabricators . | . . . . . . . . Repair Stations 5 | . 3 . 2 . . . . Recycling Units 7 | . 5 . 2 . . . . Scanalyzers . | . . . . . . . . Garrison Access . | . . . . . . . . Terminal Hacks 14 | . 10 . 2 . . . 2 Record 4 | . 4 . . . . . . Prototype ID Bank 2 | . 1 . 1 . . . . Locate Traps 1 | . 1 . . . . . . Disarm Traps 1 | . 1 . . . . . . Recall Investigation 3 | . 2 . . . . . 1 Hauler Manifests 2 | . 1 . 1 . . . . Zone Layout 1 | . . . . . . . 1 Fabricator Hacks . | . . . . . . . . Repair Station Hacks 2 | . 2 . . . . . . Scan Component 1 | . 1 . . . . . . Repair 1 | . 1 . . . . . . Recycling Unit Hacks 4 | . 3 . 1 . . . . Retrieve Components 4 | . 3 . 1 . . . . Scanalyzer . | . . . . . . . . Garrison Access Hacks . | . . . . . . . . Unauthorized Hacks 2 | . . . . . . . 2 Terminals 2 | . . . . . . . 2 Botnet 2 | . . . . . . . 2 Fabricators . | . . . . . . . . Repair Stations . | . . . . . . . . Recycling Units . | . . . . . . . . Scanalyzers . | . . . . . . . . Garrison Access . | . . . . . . . . Data Cores Recovered . | . . . . . . . . Used . | . . . . . . . . Hacking Detections 18 | . 9 . 7 . . . 2 Full Trace Events 7 | . 4 . 1 . . . 2 Feedback Events . | . . . . . . . . Feedback Blocked . | . . . . . . . . Robot Schematics Acquired . | . . . . . . . . Robots Built . | . . . . . . . . Authchips . | . . . . . . . . Time . | . . . . . . . . Total Robot Build Rating . | . . . . . . . . Part Schematics Acquired . | . . . . . . . . Parts Built . | . . . . . . . . Authchips . | . . . . . . . . Time . | . . . . . . . . Total Part Build Rating . | . . . . . . . . Parts Repaired 1 | . 1 . . . . . . Time 26 | . 26 . . . . . . Parts Recycled . | . . . . . . . . Recycled Matter . | . . . . . . . . Retrieved Matter . | . . . . . . . . Retrieved Components 13 | . 4 . 9 . . . . Parts Scanalyzed . | . . . . . . . . Part Schematics Acquired . | . . . . . . . . Parts Damaged . | . . . . . . . . Bothacking | -11 -10 -10 -9 -9 -9 -8 -8 ------------ Run | Yrd Mat Min Mat Min Exi Min Mat Used RIF Installer . | . . . . . . . . Robots Hacked . | . . . . . . . . Non-combat . | . . . . . . . . Combat . | . . . . . . . . Robot Hacks Applied . | . . . . . . . . Relay Couplers Released . | . . . . . . . . Fabnet Peak Effective % . | . . . . . . . . Robots Rewired 1 | . . . . . 1 . . Allies Hacked . | . . . . . . . . Hacks Repelled . | . . . . . . . . Allies | -11 -10 -10 -9 -9 -9 -8 -8 -------- Run | Yrd Mat Min Mat Min Exi Min Mat Total Allies 1 | . . . . . 1 . . Largest Group 1 | . . . . . 1 1 . Highest-Rated Group 8 | . . . . . 8 8 . Highest-Rated Ally 8 | . . . . . 8 8 . Total Orders . | . . . . . . . . Ally Attacks 1 | . . . . . . 1 . Total Damage . | . . . . . . . . Kills . | . . . . . . . . Allies Corrupted . | . . . . . . . . Allies Melted . | . . . . . . . . Intel | -11 -10 -10 -9 -9 -9 -8 -8 ------- Run | Yrd Mat Min Mat Min Exi Min Mat Robot Analysis Total . | . . . . . . . . Derelict Logs Recovered . | . . . . . . . . Drone Launches . | . . . . . . . . Drone Recoveries . | . . . . . . . . Exploration | -11 -10 -10 -9 -9 -9 -8 -8 ------------- Run | Yrd Mat Min Mat Min Exi Min Mat Turns Passed 8716 | 97 1813 262 4077 100 399 292 1676 Spaces Moved 3499 | 50 944 122 1603 41 164 103 472 Core 14 | 8 6 . . . . . . Treads 3420 | 42 938 122 1603 41 164 103 407 Legs . | . . . . . . . . Wheels . | . . . . . . . . Hover . | . . . . . . . . Flight 65 | . . . . . . . 65 Fastest Speed 50 | 50 160 160 160 240 240 240 240 Average Speed 209 | 146 161 210 214 240 240 240 272 Slowest Speed 500 | 160 500 240 240 240 240 240 454 Overloaded Moves . | . . . . . . . . Propulsion Burnouts . | . . . . . . . . Robots Hopped . | . . . . . . . . Cave-ins Triggered . | . . . . . . . . Exploration Rate (%) 44 | 3 99 31 89 10 56 30 39 Regions Visited 7 Branch Regions 4 Pre-discovered Areas . | . . . . . . . . Known Exits Taken . | . . . . . . . . Unknown Exits Taken 7 | 1 1 1 1 1 1 1 . Scrap Searched 2 | . . 2 . . . . . Spaces Dug 10 | . . . 10 . . . . Terrain Destroyed 439 | . 54 . 211 . . 4 170 Melee . | . . . . . . . . Projectile 25 | . . . 15 . . 4 6 AOE 414 | . 54 . 196 . . . 164 Terrain Rammed . | . . . . . . . . Walls Destroyed . | . . . . . . . . Machines Disabled . | . . . . . . . . Actions | -11 -10 -10 -9 -9 -9 -8 -8 --------- Run | Yrd Mat Min Mat Min Exi Min Mat Total 4374 | 62 1135 127 2050 44 171 121 664 Wait 339 | . 70 . 244 . . . 25 Move 3492 | 49 943 121 1602 40 163 102 472 Hop . | . . . . . . . . Pick Up 69 | 1 26 2 24 1 1 . 14 Fast Attach 25 | 7 9 . 4 . . . 5 Attach 22 | . . . 4 . . 3 15 Detach 2 | . 1 . 1 . . . . Swap 45 | 1 10 1 22 2 1 1 7 Drop 62 | . 19 2 30 1 3 1 6 Fire 308 | 4 56 1 118 . . 14 115 Melee 4 | . . . . . . . 4 Ram . | . . . . . . . . Kick . | . . . . . . . . Crush 3 | . 1 . 1 . . . 1 Escape Stasis . | . . . . . . . . Rewire 3 | . . . . . 3 . . Trap . | . . . . . . . . Miscellaneous . | . . . . . . . . Route ------- -11/Scrapyard -10/Materials (discovered 4 exits: *Mat x3 / [*Min]) -10/Mines -9/Materials (discovered 4 exits: *Mat x3 / [*Min]) -9/Mines (discovered 2 exits: [*Exi] / [Zio]) -9/Exiles -8/Mines -8/Materials History --------- Turn | Location | Event 8 | -11/Scrapyard | Discovered new exit (range 16) 98 | -11/Scrapyard | Entered Materials 195 | -10/Materials | Destroyed 7 combat bots 305 | -10/Materials | Build established: Mutant 538 | -10/Materials | Discovered new exit (range 9) 681 | -10/Materials | Discovered new exit (range 15) 1159 | -10/Materials | Discovered new exit (range 11) 1690 | -10/Materials | Discovered new exit (range 10) 1864 | -10/Materials | Repaired Lgt. Treads 1911 | -10/Materials | Entered Mines 2020 | -10/Mines | Found a hidden stash of uninstalled traps 2142 | -10/Mines | Discovered new exit (range 14) 2173 | -10/Mines | Entered Materials 2173 | -9/Materials | Evolved 2 slots: Propulsion x1, Utility x1 3055 | -9/Materials | Build established: Scavenger-Mutant 3182 | -9/Materials | Discovered new exit (range 11) 3241 | -9/Materials | Discovered new exit (range 9) 3908 | -9/Materials | Discovered new exit (range 13) 4741 | -9/Materials | Build established: Mutant 4754 | -9/Materials | Discovered new exit (range 16) 6250 | -9/Materials | Entered Mines 6257 | -9/Mines | Received a Rocket Launcher from a helpful Derelict 6308 | -9/Mines | A Derelict revealed a hidden shortcut to a safe place 6340 | -9/Mines | Deemed a non-threat by the Exiles lab entrance 6340 | -9/Mines | Discovered new exit (range 5) 6350 | -9/Mines | Entered Exiles 6350 | -9/Exiles | Found Exiles lab destroyed 6715 | -9/Exiles | Discovered new exit (range 14) 6749 | -9/Exiles | Entered Mines 6749 | -8/Mines | Accompanied by 1 ally 7020 | -8/Mines | Discovered new exit (range 10) 7041 | -8/Mines | Entered Materials 7041 | -8/Materials | Evolved 2 slots: Utility x2 8241 | -8/Materials | First assault squad dispatched 8350 | -8/Materials | Build established: Scavenger-Skirmisher 8363 | -8/Materials | Core integrity fell below 50% 8418 | -8/Materials | Core integrity fell below 20% 8462 | -8/Materials | Lost 11 parts (1p3n2u5w) 8717 | -8/Materials | Destroyed by Y-45 Defender with Heavy Assault Rifle Last Messages --------------- U-05 Engineer lays Concrete. U-05 Engineer builds a Wall. The unstable cave ceiling collapses. U-05 Engineer lays Concrete. K-01 Serf cleans the Terminal. U-05 Engineer lays Concrete. K-01 Serf cleans the Terminal. U-05 Engineer lays Concrete. U-05 Engineer builds a Wall. U-05 Engineer lays Concrete. K-01 Serf cleans the Terminal. U-05 Engineer lays Concrete. U-05 Engineer builds a Wall. K-01 Serf collects debris. U-05 Engineer lays Concrete. K-01 Serf collects debris. ALERT: Significant disruption in Zone 7K, assault force dispatched. Acquired Hacking Suite. Acquired Utility Shielding. Map ----- +----------------------------------------------------+ | """### [%[ ######??? | | ### =[[ ##??????? | | ### = ##??????? | | #########+####+### ########?? | | ??????## ! ! # ##### # T #?? | | ??????## # ##### + #?? | | ??????## # ##??# # """ #?? | | ??????## # ##??# # """ #?? | | #?????## # ##??# #? """ #?? | | """"??## # ##??# #? #?? | | """"??## # ##??# #??#####?? | | """???## * # ##??# #??###???? | | ????######### # ##??# #????????? | | [?????############ ##??# #????????? | | ?????????????##?## ##??# #????????? | | #+################ ##### #????????? | | ## #????????? | | ## #????????? | | ## #????????? | | #+######+####### ########## #????????? | | #? ???## #######??# #????????? | | ## #?## #????????# #????????? | | ## !#??# #????????# #????????? | | ## #??# #?????#### #????????? | | ## #??# #?????# #????????? | | ## #??# #?????#@##+#####????? | | #########??# #?????# # [ #????? | | #####??????????# #?????# # #????? | | ???????????????# #?????# # ! #????? | | ???????????????# ??????# # ! #????? | | ???????????????? ??????# # ! #????? | | ???????????????? ??????# # #????? | | ????????????????????????# ###+####????? | | ????????????????????????+ ???????????? | | ????????????????????????? ???????????? | | ????????????????????????? ???????????? | | ????????????????????????? ???????????? | | ????????????????????????? ???????????? | | ????????????????????????? ???????????? | | ?????????????????????????Y ???????????? | | ????????????????????????? ???????????? | | ??????????????????????????????????????? | | ??????????????????????????????????????? | | ??????????????????????????????????????? | | ??????????????????????????????????????? | | ??????????????????????????????????????? | | ??????????????????????????????????????? | | ??????????????????????????????????????? | | ??????????????????????????????????????? | | ??????????????????????????????????????? | +----------------------------------------------------+ Best States ------------- Heat Dissipation 50 Energy Generation 14 Energy Capacity 265 Matter Stores 300 Matter Capacity 300 Sight Range 16 Robot Scan Range 14 Terrain Scan Density 10 Armor Coverage 150 Evasion (%) 40 Recoil Reduction 3 Offensive Hacking 20 Item Schematics ----------------- None Robot Schematics ------------------ None Fabricated ------------ Nothing Alien Tech Used ----------------- None Achievements -------------- None Challenges ------------ None Game ------ Seed HelicalCoolantPod Manual? 0 Play Time 00:43:39 Cumulative 29.7 hours Start 2025.03.31 @ 13:47:31 End 2025.03.31 @ 14:31:01 Sessions 1 Manual Loads 0 Difficulty Rogue Special Mode None Game No. 78 Rogue 78 Adventurer 0 Explorer 0 Win Type - Total 0 Types 0/0/0/0/0/0/0/0/0 Lore% 16 Gallery% 23 Achievement% 25 Wizard Run 0 Options --------- Layout 1 ASCII 0 Keyboard 0 Movement Mouse Keybinds 0 Fullscreen 1 Font 36/Smallcaps Map View 50x40 Zoom Use 0% Tactical HUD 0 Map Filters NONE Filters NONE Steam 1 RUN: 770b7d81-1eba-4262-808e-523946f18697